lending/lending_fUSD_20240723
["ID","MTS","AMOUNT","RATE_DAILY","PERIOD"]
[332985738,1721728240435,-500.0,0.00010999,2]
[332985741,1721728240445,-500.0,0.00010999,2]
[332985743,1721728240454,-500.0,0.00010999,2]
[332985745,1721728240464,-500.0,0.00010999,2]
[332985747,1721728240473,-500.0,0.00010999,2]
[332985749,1721728240482,-500.0,0.00010999,2]
[332985751,1721728240492,-569.82,0.00010999,2]
[332985752,1721728240501,-372.83651374,0.00010999,2]
[332985754,1721728240511,-500.0,0.00010999,2]
[332985756,1721728240520,-500.0,0.00010999,2]
[332985758,1721728240530,-500.0,0.00010999,2]
[332985760,1721728240539,-500.0,0.00010999,2]
[332985762,1721728240549,-500.0,0.00010999,2]
[332985764,1721728240559,-233.43,0.00010999,2]
[332985766,1721728240569,-500.0,0.00010999,2]
[332985768,1721728240578,-500.0,0.00010999,2]
[332985770,1721728240588,-500.0,0.00010999,2]
[332985772,1721728240597,-500.0,0.00010999,2]
[332985774,1721728240608,-500.0,0.00010999,2]
[332985776,1721728240617,-500.0,0.00010999,2]
[332985778,1721728240627,-500.0,0.00010999,2]
[332985780,1721728240639,-390.22,0.00010999,2]
[332985783,1721728240648,-500.0,0.00010999,2]
[332985784,1721728240658,-500.0,0.00010999,2]
[332985787,1721728240667,-500.0,0.00010999,2]
[332985789,1721728240677,-500.0,0.00010999,2]
[332985791,1721728240687,-500.0,0.00010999,2]
[332985793,1721728240697,-500.0,0.00010999,2]
[332985795,1721728240707,-500.0,0.00010999,2]
[332985797,1721728240717,-553.07,0.00010999,2]
[332985799,1721728240727,-500.0,0.00010999,2]
[332985801,1721728240736,-291.12242658,0.00010999,2]
[332985803,1721728240750,-500.0,0.00010999,2]
[332985805,1721728240760,-500.0,0.00010999,2]
[332985807,1721728240770,-500.0,0.00010999,2]
[332985809,1721728240779,-500.0,0.00010999,2]
[332985811,1721728240790,-500.0,0.00010999,2]
[332985813,1721728240799,-500.0,0.00010999,2]
[332985815,1721728240808,-500.0,0.00010999,2]
[332985817,1721728240817,-500.0,0.00010999,2]
[332985819,1721728240827,-568.15,0.00010999,2]
[332985821,1721728240838,-592.88,0.00010999,2]
[332985823,1721728240847,-568.15,0.00010999,2]
[332985825,1721728240856,-568.15,0.00010999,2]
[332985827,1721728240866,-568.15,0.00010999,2]
[332985829,1721728240875,-568.15,0.00010999,2]
[332985831,1721728240885,-568.15,0.00010999,2]
[332985833,1721728240896,-568.15,0.00010999,2]
[332985835,1721728240906,-568.15,0.00010999,2]
[332985837,1721728240916,-568.15,0.00010999,2]
[332985839,1721728240926,-568.15,0.00010999,2]
[332985841,1721728240936,-568.15,0.00010999,2]
[332985843,1721728240945,-568.15,0.00010999,2]
[332985845,1721728240955,-568.15,0.00010999,2]
[332985847,1721728240965,-568.15,0.00010999,2]
[332985849,1721728240975,-568.15,0.00010999,2]
[332985851,1721728240985,-568.15,0.00010999,2]
[332985853,1721728240994,-568.15,0.00010999,2]
[332985855,1721728241003,-568.15,0.00010999,2]
[332985857,1721728241013,-568.15,0.00010999,2]
[332985859,1721728241023,-568.38921042,0.00010999,2]
[332985861,1721728241033,-500.0,0.00010999,2]
[332985863,1721728241042,-500.0,0.00010999,2]
[332985865,1721728241052,-500.0,0.00010999,2]
[332985867,1721728241062,-500.0,0.00010999,2]
[332985869,1721728241072,-500.0,0.00010999,2]
[332985871,1721728241081,-500.0,0.00010999,2]
[332985873,1721728241091,-500.0,0.00010999,2]
[332985875,1721728241100,-500.0,0.00010999,2]
[332985877,1721728241110,-586.6,0.00010999,2]
[332985879,1721728241120,-625.79197946,0.00011,2]
[332985881,1721728241130,-21444.26158599,0.00011,2]
[332985884,1721728241153,-286.3073085,0.00011,2]
[332985914,1721728241453,-500.0,0.00010998,2]
[332985916,1721728241463,-500.0,0.00010999,2]
[332985918,1721728241472,-44.795,0.00010999,2]
[332985920,1721728241484,-440.96864,0.00010999,2]
[332985923,1721728241497,-14.23636,0.00010999,2]
[332985924,1721728241507,-500.0,0.00010999,2]
[332985926,1721728241518,-500.0,0.00010999,2]
[332985928,1721728241529,-106.9849978,0.00010999,2]
[332985931,1721728241550,-393.0150022,0.00010999,2]
[332985933,1721728241560,-500.0,0.00010999,2]
[332985935,1721728241570,-52033.88866851,0.00011,2]
[332985939,1721728241597,-478.75263346,0.00010999,2]
[332985942,1721728241614,-21.24736654,0.00010999,2]
[332985944,1721728241624,-1043.99263346,0.00011,2]
[332986098,1721728243122,-336.52671,0.00010999,2]
[332986103,1721728243159,-301.932,0.00010367,2]
[332986107,1721728243189,-500.57827625,0.00010367,2]
[332986109,1721728243200,-197.48972375,0.00010367,2]
[332986111,1721728243209,-138.45527625,0.00010999,2]
[332986113,1721728243221,-25.01801375,0.00010999,2]
[332986115,1721728243230,-500.0,0.00010999,2]
[332986116,1721728243239,-500.0,0.00010999,2]
[332986118,1721728243248,-500.0,0.00010999,2]
[332986120,1721728243259,-500.0,0.00010999,2]
[332986123,1721728243269,-500.0,0.00010999,2]
[332986124,1721728243278,-954506.33512017,0.00011,2]
[332986536,1721728247487,-3821.0,0.00010999,2]
[332986538,1721728247499,-677.99999947,0.00010999,2]
[332986540,1721728247510,-4788.38967729,0.00010999,2]
[332986543,1721728247529,-379.71008372,0.00010999,2]
[332986545,1721728247541,-794.89183922,0.00010999,2]
[332986548,1721728247552,-3399.25741841,0.00010999,2]
[332986550,1721728247564,-6037.61331955,0.00010999,2]
[332986552,1721728247575,-791.69949259,0.00010999,2]
[332986554,1721728247586,-1033.05017563,0.00010999,2]
[332986556,1721728247598,-964.61020948,0.00010999,2]
[332986558,1721728247609,-4666.27831828,0.00010999,2]
[332986561,1721728247620,-295.25514135,0.00010999,2]
[332986563,1721728247632,-22350.24432501,0.00010999,2]
[332986565,1721728247642,-512.68,0.00010999,2]
[332986567,1721728247652,-210.47845723,0.00010999,2]
[332986569,1721728247662,-12606.42902576,0.00011,2]
[332986571,1721728247673,-2479.97084612,0.00011,2]
[332986573,1721728247685,-14159.3585288,0.00011,2]
[332986575,1721728247696,-6649.48547676,0.00011,2]
[332986578,1721728247708,-383.87296915,0.00011,2]
[332986580,1721728247719,-544.68072996,0.00011,2]
[332986582,1721728247730,-295.12565298,0.00011,2]
[332986584,1721728247741,-501.50580398,0.00011,2]
[332986586,1721728247756,-209473.24478398,0.00011,2]
[332986589,1721728247767,-6324.81784563,0.00011,2]
[332986591,1721728247778,-2306.87815915,0.00011,2]
[332986593,1721728247790,-1636.31814337,0.00011,2]
[332986595,1721728247801,-1293.7277763,0.00011,2]
[332986597,1721728247812,-544.23808247,0.00011,2]
[332986600,1721728247823,-769.05650803,0.00011,2]
[332986602,1721728247836,-448.1160009,0.00011,2]
[332986604,1721728247847,-489.02686996,0.00011,2]
[332986606,1721728247858,-965.49685388,0.00011,2]
[332986608,1721728247869,-2089.86470127,0.00011,2]
[332986612,1721728247896,-3178.05389263,0.00010999,2]
[332986614,1721728247906,-407561.18091165,0.00011,2]
[332986616,1721728247918,-1458.83968283,0.00011,2]
[332986619,1721728247930,-409.14193754,0.00011,2]
[332986621,1721728247941,-1757.99426359,0.00011,2]
[332986623,1721728247953,-531.0,0.00011,2]
[332986625,1721728247965,-498.56351199,0.00011,2]
[332986628,1721728247981,-432.5,0.00011,2]
[332986630,1721728247992,-1679.3082,0.00011,2]
[332986632,1721728248005,-887.01421024,0.00011,2]
[332986674,1721728350858,150.0,0.0001328,120]
[332986677,1721728530837,150.0,0.00014016,120]
[332986680,1721728770830,150.0,0.00014,120]
[332986681,1721728796703,1091.17,8.219e-05,2]
[332986682,1721729070809,150.0,0.00014099,120]
[332986690,1721729250778,150.0,0.00014856,120]
[332986704,1721729370664,1036.61,8.219e-05,2]
[332986711,1721729433080,-800.0,9.981e-05,2]
[332986712,1721729433099,-54.16488114,9.981e-05,2]
[332986713,1721729433111,-195.83511886,9.981e-05,2]
[332986714,1721729433122,-268.63974785,0.0001,2]
[332986715,1721729433136,-384.007262,0.0001,2]
[332986716,1721729433147,-200.0,0.00010004,2]
[332986717,1721729433157,-174.07,0.00010186,2]
[332986718,1721729433168,-374.30996325,0.00010474,2]
[332986719,1721729433180,-428.45648914,0.00010474,2]
[332986720,1721729433194,-233.84354761,0.00010474,2]
[332986721,1721729433204,-150.0,0.00010689,2]
[332986722,1721729433215,-300.0,0.00010689,2]
[332986723,1721729433225,-300.0,0.00010689,2]
[332986724,1721729433236,-21725.1704,0.0001069,2]
[332986725,1721729433247,-499.99,0.0001069,2]
[332986726,1721729433257,-156.28,0.0001069,2]
[332986727,1721729433268,-2548.5393,0.0001079,2]
[332986728,1721729433279,-5480.94,0.0001079,2]
[332986729,1721729433289,-155.33310564,0.000108,2]
[332986730,1721729433301,-2380.42,0.00010888,2]
[332986731,1721729433311,-579.1,0.00010889,2]
[332986732,1721729433322,-1786.02548,0.0001089,2]
[332986734,1721729433332,-1000.0,0.00010899,2]
[332986735,1721729433350,-1531.796945,0.000109,2]
[332986736,1721729433361,-934.54460572,0.000109,2]
[332986737,1721729433372,-164.54843604,0.000109,2]
[332986738,1721729433382,-175.99845233,0.000109,2]
[332986739,1721729433392,-155.33310564,0.000109,2]
[332986740,1721729433403,-166.85942541,0.000109,2]
[332986741,1721729433412,-220.88,0.00010904,3]
[332986743,1721729433422,-500.0,0.00010911,2]
[332986745,1721729433432,-500.0,0.00010912,2]
[332986747,1721729433442,-155.0,0.0001094,2]
[332986749,1721729433452,-500.0,0.00010958,2]
[332986751,1721729433462,-500.0,0.00010958,2]
[332986753,1721729433471,-170.38738856,0.00010958,2]
[332986755,1721729433481,-500.0,0.00010958,2]
[332986757,1721729433491,-639.19131007,0.00010958,2]
[332986759,1721729433501,-500.0,0.00010958,2]
[332986761,1721729433511,-500.0,0.00010958,2]
[332986763,1721729433521,-350.28635052,0.00010958,2]
[332986765,1721729433531,-408.18477434,0.00010958,2]
[332986767,1721729433542,-500.0,0.00010958,2]
[332986769,1721729433552,-500.0,0.00010958,2]
[332986770,1721729433562,-500.0,0.00010958,2]
[332986771,1721729433572,-316.03186608,0.00010958,2]
[332986772,1721729433581,-250.0,0.00010959,2]
[332986773,1721729433596,-150.0,0.00010959,2]
[332986774,1721729433606,-500.0,0.00010997,2]
[332986775,1721729433616,-500.0,0.00010998,2]
[332986776,1721729433626,-150.01,0.00010999,2]
[332986777,1721729433636,-5932.14747304,0.00010999,2]
[332986778,1721729433645,-500.0,0.00010999,2]
[332986779,1721729433655,-500.0,0.00010999,2]
[332986780,1721729433665,-500.0,0.00010999,2]
[332986781,1721729433675,-500.0,0.00010999,2]
[332986782,1721729433684,-616.6460721,0.00010999,2]
[332986783,1721729433694,-500.0,0.00010999,2]
[332986784,1721729433703,-500.0,0.00010999,2]
[332986785,1721729433713,-500.0,0.00010999,2]
[332986786,1721729433722,-500.0,0.00010999,2]
[332986787,1721729433732,-500.0,0.00010999,2]
[332986788,1721729433742,-500.0,0.00010999,2]
[332986789,1721729433751,-500.0,0.00010999,2]
[332986790,1721729433761,-500.0,0.00010999,2]
[332986791,1721729433771,-500.0,0.00010999,2]
[332986792,1721729433780,-500.0,0.00010999,2]
[332986793,1721729433790,-500.0,0.00010999,2]
[332986794,1721729433800,-500.0,0.00010999,2]
[332986795,1721729433810,-500.0,0.00010999,2]
[332986796,1721729433819,-500.0,0.00010999,2]
[332986797,1721729433829,-500.0,0.00010999,2]
[332986798,1721729433841,-500.0,0.00010999,2]
[332986799,1721729433850,-500.0,0.00010999,2]
[332986800,1721729433861,-356.00351231,0.00010999,2]
[332986801,1721729433870,-529.91638382,0.00010999,2]
[332986802,1721729433880,-349.56034246,0.00010999,2]
[332986803,1721729433891,-500.0,0.00010999,2]
[332986804,1721729433901,-500.0,0.00010999,2]
[332986805,1721729433910,-500.0,0.00010999,2]
[332986806,1721729433920,-500.0,0.00010999,2]
[332986807,1721729433929,-500.0,0.00010999,2]
[332986808,1721729433938,-500.0,0.00010999,2]
[332986809,1721729433948,-202.362653,0.00010999,2]
[332986810,1721729433958,-500.0,0.00010999,2]
[332986811,1721729433967,-500.0,0.00010999,2]
[332986812,1721729433977,-500.0,0.00010999,2]
[332986813,1721729433988,-261.41972783,0.00010999,2]
[332986814,1721729433997,-1143.23,0.00010999,2]
[332986815,1721729434007,-500.0,0.00010999,2]
[332986816,1721729434017,-322.32684108,0.00010999,2]
[332986817,1721729434027,-500.0,0.00010999,2]
[332986818,1721729434038,-343.11970349,0.00010999,2]
[332986819,1721729434049,-500.0,0.00010999,2]
[332986820,1721729434059,-500.0,0.00010999,2]
[332986821,1721729434072,-500.0,0.00010999,2]
[332986822,1721729434081,-510.79478251,0.00010999,2]
[332986823,1721729434093,-500.0,0.00010999,2]
[332986824,1721729434103,-500.0,0.00010999,2]
[332986825,1721729434114,-500.0,0.00010999,2]
[332986826,1721729434124,-500.0,0.00010999,2]
[332986827,1721729434135,-500.0,0.00010999,2]
[332986828,1721729434145,-500.0,0.00010999,2]
[332986829,1721729434158,-500.0,0.00010999,2]
[332986830,1721729434168,-463.08,0.00010999,2]
[332986831,1721729434178,-150.0,0.00010999,2]
[332986832,1721729434188,-510.0,0.00011,2]
[332986833,1721729434198,-85841.6980154,0.00011,2]
[332986834,1721729434211,-2186.65209013,0.00011,2]
[332986835,1721729434223,-9718.37881063,0.00011,2]
[332986836,1721729434256,-55709.2902252,0.00011,2]
[332986837,1721729434281,-653.78731251,0.00011,2]
[332986838,1721729434309,-4285.64,0.00011,2]
[332986839,1721729434335,-4532.68685568,0.00011,2]
[332986840,1721729434351,-2613.49172089,0.00011,2]
[332986841,1721729434367,-621.1420077,0.00011,2]
[332986842,1721729434379,-401.61999996,0.00011,2]
[332986843,1721729434392,-681.39069848,0.00011,2]
[332986844,1721729434403,-591.41965906,0.00011,2]
[332986858,1721729438183,-1756.65397073,0.00011,2]
[332986859,1721729438371,-1925.25072804,0.00011,2]
[332986860,1721729438385,-522644.6046504,0.00011,2]
[332986861,1721729438411,-2592831.16989877,0.00011,2]
[332986882,1721729440365,-1078.00281277,0.00011,2]
[332986887,1721729443141,-374.45057328,0.00011,2]
[332986888,1721729443197,-6206.35822758,0.00011,2]
[332986889,1721729443378,-1988.54867213,0.00011,2]
[332986890,1721729443512,-521115.16857972,0.00011,2]
[332986908,1721729447691,-156.86701542,0.00010999,2]
[332986909,1721729447701,-6726.05387354,0.00011,2]
[332986910,1721729447877,-651741.23351287,0.00011,2]
[332986911,1721729448084,-492.54153106,0.00011,2]
[332986912,1721729448110,-6320.5,0.00011,2]
[332986913,1721729448122,-92395.91394986,0.00011,2]
[332986914,1721729448146,-2148.0098432,0.00011,2]
[332986915,1721729448159,-837.5,0.00011,2]
[332990155,1721729890108,966.42,8.219e-05,2]
[332990156,1721730166791,95043.12549382,8.219e-05,2]
[332990157,1721730169132,7568.12851025,8.219e-05,2]
[332990158,1721730176510,3739.12287267,8.219e-05,2]
[332990159,1721730199131,7568.12851025,8.219e-05,2]
[332990160,1721730243639,-355.1515,9.728e-05,2]
[332990161,1721730243664,-1000.0,9.893e-05,2]
[332990162,1721730243687,-1322.66138189,9.893e-05,2]
[332990163,1721730243708,-154.33134786,9.958e-05,2]
[332990164,1721730243730,-300.0,9.961e-05,2]
[332990165,1721730243752,-300.0,9.961e-05,2]
[332990166,1721730243773,-677.85577025,9.962e-05,2]
[332990168,1721730422236,1012.35,8.219e-05,2]
[332990182,1721730481160,7568.12851025,8.219e-05,2]
[332990194,1721730588532,3599.79429163,8.219e-05,2]
[332990213,1721730632211,-250.0,9.884e-05,2]
[332990215,1721730632221,-28.60878409,9.91e-05,2]
[332990218,1721730632233,-171.39121591,9.91e-05,2]
[332990219,1721730632243,-944.41111579,9.91e-05,2]
[332990220,1721730632255,-1682.74688537,9.91e-05,2]
[332990221,1721730632266,-155.0,0.0001,2]
[332990222,1721730632276,-154.33134781,0.00010063,2]
[332990223,1721730632286,-170.0,0.00010158,2]
[332990224,1721730632296,-154.33134781,0.00010167,2]
[332990225,1721730632305,-154.33134781,0.00010272,2]
[332990226,1721730632316,-499.99,0.00010272,2]
[332990227,1721730632325,-150.99,0.00010272,2]
[332990228,1721730632335,-154.33134781,0.00010376,2]
[332990229,1721730632345,-222.97149265,0.00010468,2]
[332990230,1721730632357,-77.02850735,0.00010468,2]
[332990231,1721730632367,-150.0,0.00010468,2]
[332990232,1721730632377,-1012.35,0.00010469,2]
[332990233,1721730632388,-4551.59612789,0.00010469,2]
[332990234,1721730632409,-21527.27387211,0.00010469,2]
[332990235,1721730632419,-154.33134781,0.00010481,2]
[332990236,1721730632428,-154.33134781,0.00010585,2]
[332990237,1721730632438,-308.89253207,0.0001068,3]
[332990238,1721730632447,-154.33134781,0.0001069,2]
[332990239,1721730632458,-1071.33465234,0.0001078,2]
[332990240,1721730632468,-574.6222,0.0001079,2]
[332990241,1721730632477,-100639.3925625,0.0001088,2]
[332990242,1721730632491,-289.3455407,0.0001088,2]
[332990243,1721730632503,-1724.77404718,0.0001088,2]
[332990244,1721730632512,-5000.0,0.00010888,2]
[332990245,1721730632523,-88678.63946265,0.0001089,2]
[332990246,1721730632538,-4773.11977575,0.0001089,2]
[332990247,1721730632549,-603.38328281,0.0001089,2]
[332990248,1721730632560,-6286.357445,0.0001089,2]
[332990249,1721730632575,-15510.18676216,0.0001089,2]
[332990251,1721730638225,-695.50208201,0.0001089,2]
[332990253,1721730638262,-384.2290936,0.0001089,2]
[332990255,1721730638273,-1728.17909024,0.0001089,2]
[332990256,1721730638298,-2109.83826179,0.0001089,2]
[332990257,1721730638310,-657.76259654,0.0001089,2]
[332990258,1721730638338,-9147.58767893,0.0001089,2]
[332990259,1721730638349,-4026.77650109,0.0001089,2]
[332990260,1721730638361,-1777.0,0.0001089,2]
[332990261,1721730638390,-14038.42116727,0.0001089,2]
[332990262,1721730638474,-4909.69120069,0.0001089,2]
[332990263,1721730638492,-527.3426415,0.0001089,2]
[332990264,1721730638504,-605.30007405,0.0001089,2]
[332990265,1721730638515,-6619.44491532,0.0001089,2]
[332990266,1721730638526,-68780.81088109,0.0001089,2]
[332990267,1721730638599,-315.18102013,0.0001089,2]
[332990272,1721730640294,-25988.15717172,0.0001089,2]
[332990273,1721730640570,-1663.5002,0.0001089,2]
[332990274,1721730640581,-1986.34492326,0.0001089,2]
[332990275,1721730640592,-304.33735203,0.0001089,2]
[332990276,1721730640604,-13359.8266714,0.0001089,2]
[332990280,1721730640745,-844.59940527,0.0001089,2]
[332990281,1721730640757,-2876.07206628,0.0001089,2]
[332990282,1721730640864,-941.11594246,0.0001089,2]
[332990283,1721730640875,-2335.77121904,0.0001089,2]
[332990284,1721730640886,-1007.52312096,0.0001089,2]
[332990285,1721730640907,-1308.35300609,0.0001089,2]
[332990286,1721730640918,-578.06080476,0.0001089,2]
[332990287,1721730640929,-840.77658634,0.0001089,2]
[332990288,1721730643272,-778.91438631,0.0001089,2]
[332990292,1721730643486,-328.04999985,0.0001089,2]
[332990293,1721730643518,-5420.415,0.0001089,2]
[332990294,1721730643529,-5867.42821161,0.0001089,2]
[332990295,1721730643538,-376.89086042,0.000109,2]
[332990296,1721730643547,-500.0,0.00010911,2]
[332990297,1721730643556,-500.0,0.00010912,2]
[332990298,1721730643565,-500.0,0.00010958,2]
[332990299,1721730643575,-390.74057297,0.00010958,2]
[332990300,1721730643585,-597.36,0.00010958,2]
[332990301,1721730643595,-500.0,0.00010958,2]
[332990302,1721730643604,-1303.03,0.00010958,2]
[332990303,1721730643613,-500.0,0.00010958,2]
[332990304,1721730643624,-647.09493787,0.00010958,2]
[332990305,1721730643634,-307.80892938,0.00010958,2]
[332990306,1721730643648,-250.0,0.00010959,2]
[332990307,1721730643659,-1303.03,0.00010989,2]
[332990308,1721730643670,-1303.03,0.00010989,2]
[332990309,1721730643681,-386.520288,0.0001099,2]
[332990310,1721730643691,-359.589578,0.0001099,2]
[332990311,1721730643702,-751.10226675,0.0001099,2]
[332990313,1721730643720,-690.0,0.0001099,2]
[332990314,1721730643745,-892.0,0.0001099,2]
[332990316,1721730643757,-274.49314456,0.0001099,2]
[332990396,1721730648608,-994.92348504,0.0001099,2]
[332990397,1721730648621,-2858.56287337,0.0001099,2]
[332990398,1721730648638,-1834.85362429,0.0001099,2]
[332990399,1721730648672,-331.99566495,0.0001099,2]
[332990400,1721730648685,-353.47,0.0001099,2]
[332990401,1721730648697,-1361.88681,0.0001099,2]
[332990402,1721730648718,-561.55,0.0001099,2]
[332990407,1721730967536,911.11,8.262e-05,2]
[332990416,1721731514000,865.55,8.219e-05,2]
[332990492,1721731831665,-1007.09222956,0.0001,2]
[332990528,1721731842720,-546.54759059,0.0001,2]
[332990529,1721731842731,-466.86959085,0.0001,2]
[332990530,1721731842742,-314.105432,0.0001,2]
[332990545,1721732200742,822.27,8.219e-05,2]
[332990547,1721732305905,574.64360526,8.219e-05,2]
[332990574,1721733013421,781.15,8.219e-05,2]
[332990579,1721733031854,-316.3859,9.798e-05,2]
[332990580,1721733031864,-986.0,9.897e-05,2]
[332990581,1721733031873,-645.54,9.898e-05,2]
[332990582,1721733031883,-160.0,9.905e-05,2]
[332990583,1721733031892,-250.0,9.905e-05,2]
[332990584,1721733031902,-840.0,9.952e-05,2]
[332990585,1721733031911,-300.0,9.999e-05,2]
[332990586,1721733031920,-947.53656917,0.0001,2]
[332990587,1721733031929,-1000.0,0.0001,2]
[332990588,1721733031939,-1049.03428357,0.0001,2]
[332990589,1721733031948,-3000.0,0.0001,2]
[332990590,1721733031958,-362.43462264,0.0001017,2]
[332990591,1721733031967,-781.15,0.0001047,2]
[332990592,1721733031979,-387.05,0.00010473,2]
[332990594,1721733031989,-362.43462264,0.00010523,2]
[332990595,1721733031998,-13682.550317,0.000107,2]
[332990596,1721733032010,-488.37163313,0.000107,2]
[332990597,1721733032019,-544.27076687,0.0001077,2]
[332990598,1721733032030,-620.16359687,0.0001077,2]
[332990599,1721733032039,-499.99,0.0001077,2]
[332990600,1721733032049,-150.0,0.00010789,2]
[332990601,1721733032058,-500.0,0.0001079,2]
[332990603,1721733032067,-10236.26349472,0.0001079,2]
[332990605,1721733032083,-6225.92730528,0.0001079,2]
[332990607,1721733032092,-155.39218711,0.00010802,2]
[332990609,1721733032101,-274.53513264,0.00010809,2]
[332990611,1721733032111,-166.66666667,0.00010835,2]
[332990613,1721733032121,-1502.69052097,0.00010861,2]
[332990615,1721733032130,-166.66666666,0.00010861,2]
[332990617,1721733032141,-154.38946821,0.00010865,2]
[332990619,1721733032152,-1502.69052097,0.00010865,2]
[332990621,1721733032161,-156.76428248,0.00010884,2]
[332990623,1721733032170,-242.0312,0.0001089,2]
[332990625,1721733032179,-27000.0,0.0001089,2]
[332990627,1721733032190,-156.76428248,0.00010896,2]
[332990629,1721733032199,-247.08308572,0.000109,2]
[332990631,1721733032209,-179.77556321,0.000109,2]
[332990632,1721733032219,-165.33891119,0.000109,2]
[332990633,1721733032230,-175.99845231,0.000109,2]
[332990634,1721733032239,-251.26057362,0.000109,2]
[332990635,1721733032248,-220.88,0.00010904,3]
[332990636,1721733032257,-500.0,0.00010912,2]
[332990637,1721733032267,-168.018975,0.00010914,2]
[332990638,1721733032276,-1502.69052097,0.00010918,2]
[332990639,1721733032285,-362.43462264,0.00010922,2]
[332990640,1721733032295,-259.87712541,0.00010923,2]
[332990641,1721733032304,-725.02328984,0.00010948,2]
[332990642,1721733032314,-500.0,0.00010958,2]
[332990643,1721733032323,-1140.15,0.00010958,2]
[332990644,1721733032332,-419.52998,0.00010958,2]
[332990645,1721733032342,-500.0,0.00010958,2]
[332990646,1721733032351,-250.0,0.00010959,2]
[332990647,1721733032360,-274.53513264,0.00010962,2]
[332990648,1721733032371,-239.56505196,0.00010988,2]
[332990649,1721733032380,-1140.15,0.00010989,2]
[332990650,1721733032390,-195.66441462,0.00010989,2]
[332990651,1721733032399,-490.43286906,0.00010989,2]
[332990652,1721733032408,-500.0,0.00010989,2]
[332990653,1721733032418,-171.82,0.00010989,2]
[332990654,1721733032427,-500.0,0.00010989,2]
[332990655,1721733032436,-500.0,0.00010989,2]
[332990656,1721733032446,-500.0,0.00010989,2]
[332990657,1721733032455,-151.13527625,0.00010989,2]
[332990658,1721733032464,-46289.9446544,0.0001099,2]
[332990659,1721733032477,-3800.0,0.0001099,2]
[332990660,1721733032489,-325.90126456,0.0001099,2]
[332990661,1721733032500,-597.34227907,0.0001099,2]
[332990662,1721733032614,-12294.97963688,0.0001099,2]
[332990666,1721733038918,-1270.89616337,0.0001099,2]
[332990667,1721733038931,-1404.30113971,0.0001099,2]
[332990668,1721733039056,-2068.4236162,0.0001099,2]
[332990669,1721733039191,-319.504,0.0001099,2]
[332990747,1721733043552,-3002.52260012,0.0001099,2]
[332990756,1721733047942,-2994.14479695,0.0001099,2]
[332990760,1721733048066,-2677.693144,0.0001099,2]
[332990761,1721733048079,-852.23849829,0.0001099,2]
[332990762,1721733048334,-321136.88958141,0.0001099,2]
[332990774,1721733590394,796.02,8.219e-05,2]
[332990793,1721734153741,756.21,8.219e-05,2]
[332990798,1721734233604,-184.09406241,9.888e-05,2]
[332990799,1721734233614,-1000.0,9.932e-05,2]
[332990800,1721734233624,-151.11642307,9.962e-05,2]
[332990801,1721734233636,-142.72981224,9.962e-05,2]
[332990802,1721734233645,-1000.0,0.0001,2]
[332990803,1721734233655,-1000.0,0.000103,3]
[332990804,1721734233666,-2100.0,0.000104,3]
[332990805,1721734233676,-869.39715523,0.00010418,2]
[332990806,1721734233692,-283.39033038,0.00010418,2]
[332990807,1721734233813,-61.07551439,0.00010418,2]
[332990808,1721734233823,-756.21,0.00010469,2]
[332990809,1721734233833,-300.0,0.00010499,2]
[332990810,1721734233842,-761.27446212,0.000105,3]
[332990811,1721734233854,-355.41834579,0.000105,3]
[332990812,1721734233865,-2083.30719209,0.000105,3]
[332990813,1721734233875,-395.67391052,0.00010518,2]
[332990814,1721734233910,-2354.73262451,0.00010518,2]
[332990815,1721734233922,-453.51,0.00010518,2]